Workbook

Sheet MIPI DSI TX
C1: TITANIUM MIPI DSI Transmitter Utility
B2: MIPI BLOCK TYPE | C2: Emulated | F2: Input fields
B4: Enter the video information | E4: Video Timing Register settings
B5: Data type | C5: RGB101010 | D5: H-WC | E5: 400000 | F5: =E5&G5 -> 40000014C8 | G5: =DEC2HEX(ROUNDDOWN((C6+C8+C9+C10)*1000/C14/(8/C23*1000),0)*C24,4) -> 14C8
B6: # of data pixels per line | C6: 1080 | D6: HAS | E6: 440000 | F6: 4400000006 | G6: =DEC2HEX(C8*3,4) -> 0006
B7: # of data lines per frame | C7: 1920 | D7: HBP | E7: 480000 | F7: 480000000C | G7: =DEC2HEX(IF(C26="Non-burst sync pulse", C9*3, (C8+C9)*3),4) -> 000C
B8: HSA | C8: 2 | D8: HFP | E8: 4C0000 | F8: 4C000002E2 | G8: =DEC2HEX(C10*3,4) -> 02E2
B9: HBP | C9: 2 | D9: VSA | E9: 500000 | F9: 5000000005 | G9: =DEC2HEX(C11,4) -> 0005
B10: HFP | C10: 246 | D10: VBP | E10: 540000 | F10: 5400000008 | G10: =DEC2HEX(C12,4) -> 0008
B11: VSA | C11: 5 | D11: VFP | E11: 580000 | F11: 5800000020 | G11: =DEC2HEX(C13,4) -> 0020
B12: VBP | C12: 8 | D12: VACT | E12: 5C0000 | F12: 5C00000780 | G12: =DEC2HEX(C7,4) -> 0780
B13: VFP | C13: 32 | E13: 180000 | F13: 180000000A
B14: Pixel clock frequency (MHz) | C14: 125
B16: # of blanking lines per frame | C16: =C11+C12+C13 -> 45
B17: # of byte clock per H line | C17: =(C6+C8+C9+C10)*VLOOKUP($C$5,'Data Type'!K7:L13,2,FALSE)/8/C14 -> 
B18: # of frames per second (Hz) | C18: =ROUND(C14*1000000/((C6+C8+C9+C10)*(C7+C11+C12+C13)),1) -> 47.8
B19: Horizontal blanking per line (us) | C19: =(C8+C9+C10)/C14 -> 2 | D19: =IF(OR(C5='Data Type'!B19,C5='Data Type'!B18),"Enter the value of the even lines. You should apply the same line rate to odd and even lines.","") -> 
B22: Enter the MIPI interface details
B23: Data rate (Mbps) | C23: 1000 | D23: =IF(OR(C23<VLOOKUP($C$2,dataratetable,2,FALSE),C23>VLOOKUP($C$2,dataratetable,3,FALSE)),"Data rate beyond acceptable range!", "") -> 
B24: # of lanes | C24: 4
B25: Clock mode | C25: Continuous
B26: Video mode | C26: Non-burst sync event
B28: Enter the TX timing parameter settings | E28: Min | F28: Max | G28: Emu Deafult | H28: Hrd Approx. by M31
B29: TxClkEsc Frequency (MHz) | C29: 20 | F29: 20 | G29: 20 | H29: 20 | I29: Hidden to customers
B30: THS-PREPARE (ns) | C30: 80 | E30: =40+4*C56 -> 44 | F30: =85+6*C56 -> 91 | G30: 50 | H30: 46.6
B31: THS-ZERO (ns) | C31: 200 | E31: =145+10*C56-C30 -> 75 | G31: 262 | H31: 103.2
B32: THS-TRAIL (ns) | C32: 100 | E32: =MAX(8*C56, 60+4*C56) -> 64 | G32: 1220 | H32: 61.6
B33: THS-EXIT (ns) | C33: 120 | E33: 100 | G33: 500 | H33: 100
B34: TCLK-POST (ns) | C34: 112 | E34: =60+52*C56 -> 112 | G34: 455 | H34: 80.8
B35: TCLK-TRAIL (ns) | C35: 60 | E35: 60 | G35: 80 | H35: 61.6
B36: TCLK-PREPARE (ns) | C36: 60 | E36: =40+4*C56 -> 44 | F36: =85+6*C56 -> 91 | G36: 70 | H36: 38
B37: TCLK-ZERO (ns) | C37: 280 | E37: =300-C36 -> 240 | G37: 400 | H37: 262.8
B38: TCLK-PRE (ns) | C38: 10 | E38: =8*C56 -> 8 | G38: 10 | H38: 3.2
B39: TLPX (ns) | C39: 100 | E39: 50 | G39: 100 | H39: 50
I40: Hidden to customers
B41: Use default values | C41: FALSE | I41: Hidden to customers
I42: Hidden to customers
B43: Pixel data (based on the data type) | I43: Hidden to customers
B44: YUV 420? | C44: =OR(C5='Data Type'!B19,C5='Data Type'!B18) -> FALSE | I44: Hidden to customers
B45: YUV? | C45: =OR(C5='Data Type'!B19,C5='Data Type'!B18,C5='Data Type'!B20,C5='Data Type'!B22,C5='Data Type'!B21) -> FALSE | I45: Hidden to customers
I46: Hidden to customers
B47: =IF(C44,"# of pixels per pixel clock (even lines)","# of pixels per pixel clock") -> # of pixels per pixel clock | C47: =VLOOKUP($C$5,IF(EXACT($C$2,"Emulated"),datatypetable_dsi,datatypetable_dsi),3,FALSE) -> 2 | D47: =IF(C45,"(on average)","") ->  | I47: Hidden to customers
B48: =IF(C44,"# of bits per pixel (even lines)","# of bits per pixel") -> # of bits per pixel | C48: =VLOOKUP($C$5,IF(EXACT($C$2,"Emulated"),datatypetable_dsi,datatypetable_dsi),2,FALSE) -> 30 | D48: =IF(C45,"(on average)","") ->  | I48: Hidden to customers
B49: =IF(C44,"# of pixels per pixel clock (odd lines)","") ->  | I49: Hidden to customers
B50: =IF(C44,"# of bits per pixel (odd lines)","") ->  | I50: Hidden to customers
B51: # of bits per line | C51: =C6*C48 -> 32400 | D51: =IF(C44,"(even lines)","") ->  | I51: Hidden to customers
B52: BW overhead spec | C52: 0 | I52: Hidden to customers
B53: Minimum Video Line Rate (kHz) | C53: =(C7+C16)*C18/1000 -> 93.927 | I53: Hidden to customers
B54: Line rate margin (kHz) | C54: =C55-C53*(1+C52) -> 6.323626566 | I54: Hidden to customers
B55: Maximum MIPI Line Rate (kHz) | C55: =1/(((C6+C8+C9+C10)*C48/8*(8/C23*1000)/C24)+C61)*1000000 -> 100.2506266 | I55: Hidden to customers
B56: MIPI Tx UI (ns) | C56: =1000/C23 -> 1 | I56: Hidden to customers
I57: Hidden to customers
B58: TxClkEsc Period (ns) | C58: =1000/C29 -> 50 | I58: Hidden to customers
B59: Data Packet overhead (ns) | C59: =IF(C26="Burst",C39+C30+C31+C32+C33,0) -> 0 | I59: Hidden to customers
B60: LP Clock overhead (ns) | C60: =IF(C25="Non-continuous",IF(C26="Burst",C39+C34+C35+C36+C37+C38+C33,0),0) -> 0 | I60: Hidden to customers
B61: TOTAL overhead (us) | C61: =(C59+C60)/1000 -> 0 | I61: Hidden to customers
I62: Hidden to customers
B63: Minimum hsync pulse (hsp) (us) | C63: =2/C14 -> 0.016 | I63: Hidden to customers
B64: Minimum horiz. back porch (hbp) (us) | C64: =2/C14 -> 0.016 | D64: =IF(OR(C5='Data Type'!B19,C5='Data Type'!B18),"To achieve the same line rate on odd and even lines, please extend the back porch of the odd lines while keeping the front porch constant.","") ->  | I64: Hidden to customers
B65: Minimum horiz. front porch (hfp) (us) | C65: =2/C14 -> 0.016 | I65: Hidden to customers
B67: Blanking margin (us) | C67: =C19-C63-C64-C65 -> 1.952 | I67: Hidden to customers
B68: Results
B69: Minimum horizontal blanking test | C69: =IF(C67<0,"Action Required","PASS") -> PASS | D69: =IF(C69<>"PASS","Try a) increasing horizontal blanking, or b) increasing pixel clock frequency.","") -> 
B70: Minimum bandwidth test | C70: =IF(C54<0,"Action Required","PASS") -> PASS | D70: =IF(C70<>"PASS","Try a) using Continuous Clock Mode, or b) increasing horizontal blanking, or c) increasing data rate, or d) increasing number of data lanes.","") -> 
A72: © Efinix, Inc.

Sheet MIPI CSI TX
C1: TITANIUM MIPI CSI Transmitter Utility
B2: MIPI BLOCK TYPE | C2: Hardened | F2: Input fields
B4: Enter the video information
B5: Data type | C5: RGB565 | D5: =IF(ISERROR(MATCH(C5,IF(EXACT($C$2,"Emulated"),datatypelist_csi,datatypelist_csi_hb),0)),"Block type does not support current data type, please pick up from drop-down menu","") -> 
B6: # of data pixels per line | C6: 4096 | E6: =C8*C46 -> 37.768
B7: # of data lines per frame | C7: 2160
B8: # of blanking lines per frame | C8: 5 | D8: =IF(OR(C5='Data Type'!B19,C5='Data Type'!B18),"Enter the value of the even lines. You should apply the same line rate to odd and even lines.","") -> 
B9: # of frames per second (Hz) | C9: 60
B10: HS Data width | C10: 16 | D10: =IF(ISERROR(MATCH(C10,IF(EXACT($C$2,"Emulated"),datawidthlist,datawidthlist_hb),0)),"Block type does not support current data width, please pick up from drop-down menu","") -> 
B11: Horizontal blanking per line (us) | C11: 1
B12: Pixel clock frequency (MHz) | C12: 156.25 | D12: =IF(C12>C15*C16/C38/C39,"Pixel clock excceds maximum range for current datarate and datatype settings","") -> 
B14: Enter the MIPI interface details
B15: Data rate (Mbps) | C15: 2500 | D15: =IF(OR(C15<VLOOKUP($C$2,dataratetable,2,FALSE),C15>VLOOKUP($C$2,dataratetable,3,FALSE)),"Data rate beyond acceptable range!", "") -> 
B16: # of lanes | C16: 4
B17: Clock mode | C17: Continuous
B19: Enter the TX timing parameter settings | E19: Min | F19: Max | G19: Emu Deafult | H19: Hrd Approx. by M31
B20: TxClkEsc Frequency (MHz) | C20: 20 | F20: 20 | G20: 20 | H20: 20 | I20: Hidden to customers
B21: THS-PREPARE (ns) | C21: 87.4 | D21: =IF(OR(C21<E21,C21>F21),"Violate MIPI spec","") ->  | E21: =40+4*C50 -> 41.6 | F21: =85+6*C50 -> 87.4 | G21: 50 | H21: =45+4*C50 -> 46.6
B22: THS-ZERO (ns) | C22: 206.4 | D22: =IF(C22<E22,"Violate MIPI spec","") ->  | E22: =145+10*C50-C21 -> 61.6 | G22: 262 | H22: =100+8*C50 -> 103.2
B23: THS-TRAIL (ns) | C23: 123.2 | D23: =IF(C23<E23,"Violate MIPI spec","") ->  | E23: =MAX(8*C50, 60+4*C50) -> 61.6 | G23: 1220 | H23: =60+4*C50 -> 61.6
B24: THS-EXIT (ns) | C24: 100 | D24: =IF(C24<E24,"Violate MIPI spec","") ->  | E24: 100 | G24: 500 | H24: =2*H30 -> 100
B25: TCLK-POST (ns) | C25: 161.6 | D25: =IF(C25<E25,"Violate MIPI spec","") ->  | E25: =60+52*C50 -> 80.8 | G25: 455 | H25: =60+52*C50 -> 80.8
B26: TCLK-TRAIL (ns) | C26: 123.2 | D26: =IF(C26<E26,"Violate MIPI spec","") ->  | E26: 60 | G26: 80 | H26: =60+4*C50 -> 61.6
B27: TCLK-PREPARE (ns) | C27: 76 | D27: =IF(OR(C27<E27,C27>F27),"Violate MIPI spec","") ->  | E27: 38 | F27: 95 | G27: 70 | H27: 38
B28: TCLK-ZERO (ns) | C28: 525.6 | D28: =IF(C28<E28,"Violate MIPI spec","") ->  | E28: =300-C27 -> 224 | G28: 400 | H28: =262+2*C50 -> 262.8
B29: TCLK-PRE (ns) | C29: 6.4 | D29: =IF(C29<E29,"Violate MIPI spec","") ->  | E29: =8*C50 -> 3.2 | G29: 10 | H29: =8*C50 -> 3.2
B30: TLPX (ns) | C30: 50 | D30: =IF(C30<E30,"Violate MIPI spec","") ->  | E30: 50 | G30: 100 | H30: =1000/H20 -> 50
B32: Use Default Values | C32: FALSE | I32: Hidden to customers
I33: Hidden to customers
B34: Pixel data (based on the data type) | I34: Hidden to customers
B35: YUV 420? | C35: =OR(C5='Data Type'!B19,C5='Data Type'!B18) -> FALSE | I35: Hidden to customers
B36: YUV? | C36: =OR(C5='Data Type'!B19,C5='Data Type'!B18,C5='Data Type'!B20,C5='Data Type'!B21,C5='Data Type'!B22) -> FALSE | I36: Hidden to customers
I37: Hidden to customers
B38: =IF(C35,"# of pixels per pixel clock (even lines)","# of pixels per pixel clock") -> # of pixels per pixel clock | C38: =VLOOKUP($C$5,IF(EXACT($C$2,"Emulated"),datatypetable_csi,datatypetable_csi_hb),7,FALSE) -> 4 | D38: =IF(C36,"(on average)","") ->  | I38: Hidden to customers
B39: =IF(C35,"# of bits per pixel (even lines)","# of bits per pixel") -> # of bits per pixel | C39: =VLOOKUP($C$5,IF(EXACT($C$2,"Emulated"),datatypetable_csi,datatypetable_csi_hb),2,FALSE) -> 16 | D39: =IF(C36,"(on average)","") ->  | I39: Hidden to customers
B40: =IF(C35,"# of pixels per pixel clock (odd lines)","") ->  | C40: =IF(C35,VLOOKUP($C$5,IF(EXACT($C$2,"Emulated"),datatypetable_csi,datatypetable_csi_hb),5,FALSE),"") ->  | I40: Hidden to customers
B41: =IF(C35,"# of bits per pixel (odd lines)","") ->  | C41: =IF(C35,VLOOKUP($C$5,IF(EXACT($C$2,"Emulated"),datatypetable_csi,datatypetable_csi_hb),3,FALSE),"") ->  | I41: Hidden to customers
B42: # of bits per line | C42: =C6*C39 -> 65536 | D42: =IF(C35,"(even lines)","") ->  | I42: Hidden to customers
B43: BW overhead spec | C43: 0 | I43: Hidden to customers
B44: Minimum Line Rate (kHz) | C44: =(C7+C8)*C9/1000 -> 129.9 | I44: Hidden to customers
B45: Line rate margin (kHz) | C45: =1000/C46-C44 -> 2.4872061 | I45: Hidden to customers
B46: Line Period (us) | C46: =C6/C12/C38+C11 -> 7.5536 | I46: Hidden to customers
B47: Video Bandwidth (Mbps) | C47: =C6*C39/C46 -> 8676.127939 | I47: Hidden to customers
I48: Hidden to customers
B49: Minimum Serial Bandwidth (Mbps) | C49: =C47*(1+C43) -> 8676.127939 | I49: Hidden to customers
B50: MIPI Tx UI (ns) | C50: =1000/C15 -> 0.4 | I50: Hidden to customers
I51: Hidden to customers
B52: TxClkEsc Period (ns) | C52: =1000/C20 -> 50 | I52: Hidden to customers
B53: Data Packet overhead (ns) | C53: =C30+C21+C22+C23 -> 467 | I53: Hidden to customers
B54: LP Clock overhead (ns) | C54: =IF(C17="Continuous",C24,C30+C25+C26+C27+C28+C29) -> 100 | I54: Hidden to customers
B55: TOTAL overhead (us) | C55: =(C53+C54)/1000 -> 0.567 | I55: Hidden to customers
B56: Guard band for non-data period | C56: 0.4 | I56: Hidden to customers
B57: Time to transmit one even line (us) | C57: =C39*C6/C15/C16 + C55*(1+C56) -> 7.3474 | I57: Hidden to customers
B58: Time to transmit one odd line (us) | C58: =IF(C35,C41*C6/C15/C16+C55*(1+C56),"Not Available") -> Not Available | I58: Hidden to customers
B59: Effective Serial Bandwidth (Mbps) | C59: =C39*C6/C57 -> 8919.617824 | I59: Hidden to customers
B60: Bandwidth margin (Mbps) | C60: =C59-C49 -> 243.489885 | I60: Hidden to customers
I61: Hidden to customers
B62: Minimum hsync pulse (hsp=160) (us) | C62: =160/C12 -> 1.024 | I62: Hidden to customers
B63: Minimum horiz. back porch (hbp=3) (us) | C63: =3/C12 -> 0.0192 | D63: =IF(OR(C5='Data Type'!B19,C5='Data Type'!B18),"To achieve the same line rate on odd and even lines, please extend the back porch of the odd lines while keeping the front porch constant.","") ->  | I63: Hidden to customers
B64: Minimum horiz. front porch (hfp=3) (us) | C64: =3/C12 -> 0.0192 | I64: Hidden to customers
I65: Hidden to customers
B66: Blanking margin (us) | C66: =C11-C62-C63-C64 -> -0.0624 | I66: Hidden to customers
B67: Results
B68: Minimum horizontal blanking test | C68: =IF(C57>C46,"Action Required","PASS") -> PASS | D68: =IF(C68<>"PASS","Try a) increasing horizontal blanking, or b) increasing pixel clock frequency.","") -> 
B69: Minimum line rate test | C69: =IF(C45<0,"Action Required","PASS") -> PASS | D69: =IF(C69<>"PASS","Try decreasing horizontal blanking.","") -> 
B70: Minimum bandwidth test | C70: =IF(C60<0,"Action Required","PASS") -> PASS | D70: =IF(C70<>"PASS","Try a) using Continuous Clock Mode, or b) increasing horizontal blanking, or c) increasing data rate, or d) increasing number of data lanes.","") -> 
A72: © Efinix, Inc.

Sheet MIPI CSI RX
C1: TITANIUM MIPI CSI Receiver Utility
B2: MIPI BLOCK TYPE | C2: Hardened | F2: Input fields
B4: Enter the video information
B5: Data type | C5: RAW8
B6: # of data pixels per line | C6: 3840
B7: Pixel clock frequency (MHz) | C7: 156.25 | D7: =IF(C7<C36,"Pixel clock below minimum RX pixel clock frequency.",IF(C7<C10*C11/C27/C28,"Pixel clock below recommended for current datatype and PHY bandwidth.","")) -> 
B9: Enter the MIPI interface details
B10: Data rate (Mbps) | C10: 2500 | D10: =IF(OR(C10<VLOOKUP($C$2,dataratetable,2,FALSE),C10>VLOOKUP($C$2,dataratetable,3,FALSE)),"Data rate beyond acceptable range!", "") -> 
B11: # of data lanes | C11: 4
B12: Clock mode | C12: Non-continuous
B13: Line rate (kHz) | C13: 121 | E13: Min | F13: Max
B14: Camera's THS-PREPARE (ns) | C14: 50.5 | E14: =40+4*C29 -> 41.6 | F14: =85+6*C29 -> 87.4
B15: Camera's THS-ZERO (ns) | C15: 262 | E15: =145+10*C29-C14 -> 98.5
B16: Camera's THS-TRAIL (ns) | C16: 1220 | E16: =MAX(8*C29, 60+4*C29) -> 61.6
B17: Camera's THS-EXIT (ns) | C17: 500 | E17: 100
B18: Camera's TCLK-POST (ns) | C18: 455 | E18: =60+52*C29 -> 80.8
B19: Camera's TCLK-TRAIL (ns) | C19: 80 | E19: 60
B20: Camera's TCLK-PREPARE (ns) | C20: 70 | E20: 38 | F20: 95
B21: Camera's TCLK-ZERO (ns) | C21: 400 | E21: =300-C20 -> 230
B22: Camera's TCLK-PRE (ns) | C22: 10 | E22: =8*C29 -> 3.2
B23: Camera's TLPX (ns) | C23: 100 | E23: 50
B25: YUV 420? | C25: =OR(C5='Data Type'!B19,C5='Data Type'!B18) -> FALSE | I25: Hidden to customers
B26: YUV? | C26: =OR(C5='Data Type'!B19,C5='Data Type'!B18,C5='Data Type'!B20,C5='Data Type'!B21,C5='Data Type'!B22) -> FALSE | I26: Hidden to customers
B27: =IF(C25,"# of pixels per pixel clock (even lines)","# of pixels per pixel clock") -> # of pixels per pixel clock | C27: =VLOOKUP($C$5,IF(EXACT($C$2,"Emulated"),datatypetable_csi,datatypetable_csi_hb),7,FALSE) -> 8 | D27: =IF(C26,"(on average)","") ->  | I27: Hidden to customers
B28: =IF(C24,"# of bits per pixel (even lines)","# of bits per pixel") -> # of bits per pixel | C28: =VLOOKUP($C$5,IF(EXACT($C$2,"Emulated"),datatypetable_csi,datatypetable_csi_hb),2,FALSE) -> 8 | I28: Hidden to customers
B29: MIPI Rx UI (ns) | C29: =1000/C10 -> 0.4
B31: Minimum THS-TRAIL (ns) | C31: =$E$16 -> 61.6
B32: Minimum THS-TRAIL+TCLK-POST (ns) | C32: =IF(C12="Continuous","Not Available", $E$16+$E$18) -> 142.4
B33: Minimum THS-EXIT (ns) | C33: =$E$17 -> 100
B35: BW overhead | C35: 0.2 | I35: Hidden to customers
B36: Minimum RX pixel clock frequency (MHz) | C36: =(1+C35)*C6*C13/C27/1000 -> 69.696
B38: Results
B39: Minimum RX pixel clock frequency test | C39: =IF(C36>C7,"Action Required","PASS") -> PASS | D39: =IF(C39<>"PASS","Try a) increasing the pixel clock frequency, or tuning the camera's register settings to b) decreasing the number of pixels per line, or c) decreasing the line rate.","") -> 
B40: Minimum MIPI speed test | C40: =IF(1/(ROUNDUP(C6*C28/8/C11,0)/C10)*1000<C13,"Action Required","PASS") -> PASS | D40: =IF(C40<>"PASS","Try tuning the camera's register settings to a) increase lane speed, or b) increase number of lane, or c) decrease line rate.","") -> 
B41: Minimum THS-TRAIL test | C41: =IF(C31>C16,"Action Required","PASS") -> PASS
B42: Minimum THS-TRAIL+TCLK-POST test | C42: =IF(C12="Non-continuous",IF(C32>C16+C18,"Action Required","PASS"),"Not Available") -> PASS
A44: © Efinix, Inc.

Sheet Data Type (hidden)
B1: MIPI BLOCK TYPE | C1: Min DR | D1: Max DR
B2: Emulated | C2: 80 | D2: 1500
B3: Hardened | C3: 80 | D3: 2500
B5: CSI | C5: Tx | G5: Rx | K5: DSI | L5: Tx | P5: CSI | Q5: Tx | U5: Rx
B6: Emulated MIPI Data Type | C6: Bits/pixel | D6: (Odd lines) | E6: Pixels/clock | F6: (Odd lines) | G6: Bits/pixel | H6: Pixels/clock | K6: Data Type | L6: Bits/pixel | M6: Pixels/clock | P6: Harden MIPI Data Type | Q6: Bits/pixel | R6: (Odd lines) | S6: Pixels/clock | T6: (Odd lines) | U6: Bits/pixel | V6: Pixels/clock
A7: 0x20 | B7: RGB444 | C7: 12 | E7: 4 | G7: 12 | H7: 4 | J7: 0x0C | K7: 20-bit YCbCr | L7: 24 | M7: 2 | O7: 0x20 | P7: RGB444 | Q7: 12 | S7: 4 | U7: 12 | V7: 4
A8: 0x21 | B8: RGB555 | C8: 15 | E8: 4 | G8: 15 | H8: 4 | J8: 0x1C | K8: 24-bit YCbCr | L8: 24 | M8: 2 | O8: 0x21 | P8: RGB555 | Q8: 15 | S8: 4 | U8: 15 | V8: 4
A9: 0x22 | B9: RGB565 | C9: 16 | E9: 4 | G9: 16 | H9: 4 | J9: 0x2C | K9: 16-bit YCbCr | L9: 16 | M9: 4 | O9: 0x22 | P9: RGB565 | Q9: 16 | S9: 4 | U9: 16 | V9: 4
A10: 0x23 | B10: RGB666 | C10: 18 | E10: 3 | G10: 18 | H10: 3 | J10: 0x3D | K10: 12-bit YCbCr | L10: 12 | M10: 4 | O10: 0x23 | P10: RGB666 | Q10: 18 | S10: 3 | U10: 18 | V10: 3
A11: 0x24 | B11: RGB888 | C11: 24 | E11: 2 | G11: 24 | H11: 2 | J11: 0x0E | K11: RGB565 | L11: 16 | M11: 4 | O11: 0x24 | P11: RGB888 | Q11: 24 | S11: 2 | U11: 24 | V11: 2
A12: 0x28 | B12: RAW6 | C12: 6 | E12: 8 | G12: 6 | H12: 8 | J12: 0x2E | K12: RGB666 (24-bit) | L12: 24 | M12: 2 | O12: 0x28 | P12: RAW6 | Q12: 6 | S12: 8 | U12: 6 | V12: 8
A13: 0x29 | B13: RAW7 | C13: 7 | E13: 8 | G13: 7 | H13: 8 | J13: 0x3E | K13: RGB888 | L13: 24 | M13: 2 | O13: 0x29 | P13: RAW7 | Q13: 7 | S13: 8 | U13: 7 | V13: 8
A14: 0x2A | B14: RAW8 | C14: 8 | E14: 8 | G14: 8 | H14: 8 | J14: 0x0D | K14: RGB101010 | L14: 30 | M14: 2 | O14: 0x2A | P14: RAW8 | Q14: 8 | S14: 8 | U14: 8 | V14: 8
A15: 0x2B | B15: RAW10 | C15: 10 | E15: 4 | G15: 10 | H15: 4 | O15: 0x2B | P15: RAW10 | Q15: 10 | S15: 4 | U15: 10 | V15: 4
A16: 0x2C | B16: RAW12 | C16: 12 | E16: 4 | G16: 12 | H16: 4 | O16: 0x2C | P16: RAW12 | Q16: 12 | S16: 4 | U16: 12 | V16: 4
A17: 0x2D | B17: RAW14 | C17: 14 | E17: 4 | G17: 14 | H17: 4 | O17: 0x2D | P17: RAW14 | Q17: 14 | S17: 4 | U17: 14 | V17: 4
A18: 0x18 | B18: YUV 420 8-bit | C18: 16 | D18: 8 | E18: 4 | F18: 8 | G18: 16 | H18: 4 | O18: 0x2E | P18: RAW16 | Q18: 16 | S18: 4 | U18: 16 | V18: 4
A19: 0x19 | B19: YUV 420 10-bit | C19: 20 | D19: 10 | E19: 2 | F19: 4 | G19: 20 | H19: 2 | O19: 0x2F | P19: RAW20 | Q19: 20 | S19: 2 | U19: 20 | V19: 2
A20: 0x1A | B20: YUV 420 8-bit (Legacy) | C20: 12 | E20: 4 | G20: 12 | H20: 4 | O20: 0x27 | P20: RAW24 | Q20: 24 | S20: 2 | U20: 24 | V20: 2
A21: 0x1E | B21: YUV 422 8-bit | C21: 16 | E21: 4 | G21: 16 | H21: 4 | O21: 0x26 | P21: RAW28 | Q21: 28 | S21: 2 | U21: 28 | V21: 2
A22: 0x1F | B22: YUV 422 10-bit | C22: 20 | E22: 2 | G22: 20 | H22: 2 | O22: 0x18 | P22: YUV 420 8-bit | Q22: 16 | R22: 8 | S22: 4 | T22: 8 | U22: 16 | V22: 4
A23: 0x30-37 | B23: User Defined | C23: 8 | E23: 8 | G23: 8 | H23: 8 | O23: 0x19 | P23: YUV 420 10-bit | Q23: 20 | R23: 10 | S23: 2 | T23: 4 | U23: 20 | V23: 2
O24: 0x1A | P24: YUV 420 8-bit (Legacy) | Q24: 12 | S24: 4 | U24: 12 | V24: 4
B25: Clock Mode | O25: 0x1E | P25: YUV 422 8-bit | Q25: 16 | S25: 4 | U25: 16 | V25: 4
B26: Continuous | O26: 0x1F | P26: YUV 422 10-bit | Q26: 20 | S26: 2 | U26: 20 | V26: 2
B27: Non-continuous | O27: 0x30-37 | P27: User Defined 8 bit | Q27: 8 | S27: 8 | U27: 8 | V27: 8
B29: Frame Mode
B30: General
B31: Accurate
B33: Number of Lanes
B34: 1
B35: 2
B36: 4
B37: 8
B39: Video Mode
B40: Non-burst sync event
B41: Non-burst sync pulse
B42: Burst
B44: Data Width
B45: 8
B46: 16

Sheet Revision History
A1: =_xlfn.CONCAT("Titanium MIPI Utility"," v",INDIRECT("B"&COUNTA($B:$B)+2)," ",$E$1) -> Titanium MIPI Utility v1.7 Release | D1: © Efinix, Inc. | E1: Release
A3: Date | B3: Version | C3: Revised by | D3: Description
A4: 2021-11-10 | B4: 1.0 | D4: Initial release.
A5: 2022-03-09 | B5: 1.1 | D5: Corrected calculation of bandwidth
A6: 2023-01-30 | B6: 1.3 | C6: CFLEUNG | D6: Corrected calculation of fields in ("MIPI DSI TX") Sheet: 1. # of byte clock per line 2. # of frames per second (Hz) 3. Horizontal blanking per line (us)
A7: 2023-08-11 | B7: 1.4 | C7: CFLEUNG | D7: 1. Multiple enhance to Debug Mode 2. MIPI CSI RX: 2a) Add support to 2.5G controller 2b) Correct Camera's TCLK-PREPARE (ns) Min/Max Value 2c) Correct Minimum THS Timing 2d) Add reminder to pixel clock, data rate if out of range 3. MIPI CSI TX: 3a) Add support to 2.5G controller 3b) Load default timing for Hardened MIPI 3c) Correct Camera's TCLK-PREPARE (ns) Min/Max Value 3d) Add reminder to pixel clock, data rate and horizontal blanking if out or range
A8: 2023-10-17 | B8: 1.5 | C8: CFLEUNG | D8: 1. MIPI CSI TX: 1a) Enhance the minimum blanking calculation with regard to user guide v2.2 1b) Correct minimum datarate support 1c) Correct timing violation detemination and limit user input for harden MIPI 1d) Minor user interface improve 2. MIPI CSI RS: 2a) Correct minimum datarate support
A9: 2024-01-24 | B9: 1.6 | C9: CFLEUNG | D9: 1. MIPI DSI TX: 1a) Support 2.5G max data rate 1b) Support new data type RGB101010 2. MIPI CSI TX: 2a) Protect Worksheet bug fixed 2b) Erase "Hardened" MIPI 8-bit data wdth option 2c) Enhance timing lock interface under "Hardened" mode 3. MIPI CSI RX: 3a) Modify pixel clock warning message 4. Worksheet security fix
A10: 2024-03-22 | B10: 1.7 | C10: CFLEUNG | D10: 1. MIPI CSI TX: 1a) Update minimum blanking calculation in accordance with 2023.2 Patch 3, CSI-2 TX and CSI-2 TX 2.5G IP update
